fUSD/lending_fUSD_20251201
["ID","MTS","AMOUNT","RATE_DAILY","PERIOD"]
[395241322,1764563452842,-500.0,0.00016999,2]
[395241323,1764563452851,-500.0,0.00016999,2]
[395241324,1764563452860,-500.0,0.00016999,2]
[395241325,1764563452869,-500.0,0.00016999,2]
[395241326,1764563452878,-510.9486006,0.00016999,2]
[395241327,1764563452887,-500.0,0.00016999,2]
[395241328,1764563452896,-500.0,0.00016999,2]
[395241329,1764563452905,-500.0,0.00016999,2]
[395241330,1764563452914,-500.0,0.00016999,2]
[395241331,1764563452923,-500.0,0.00016999,2]
[395241332,1764563452932,-500.0,0.00016999,2]
[395241333,1764563452941,-507.32385656,0.00016999,2]
[395241334,1764563452950,-500.0,0.00016999,2]
[395241335,1764563452959,-500.0,0.00016999,2]
[395241336,1764563452968,-500.0,0.00016999,2]
[395241337,1764563452977,-500.0,0.00016999,2]
[395241338,1764563452986,-500.0,0.00016999,2]
[395241339,1764563452996,-500.0,0.00016999,2]
[395241340,1764563453005,-500.0,0.00016999,2]
[395241341,1764563453014,-500.0,0.00016999,2]
[395241342,1764563453023,-500.0,0.00016999,2]
[395241343,1764563453033,-150.61555063,0.00016999,2]
[395241344,1764563453043,-500.0,0.00016999,2]
[395241345,1764563453052,-207.74536236,0.00016999,2]
[395241346,1764563453062,-2555.15,0.00016999,2]
[395241347,1764563453071,-2555.15,0.00016999,2]
[395241348,1764563453080,-2555.15,0.00016999,2]
[395241349,1764563453090,-2555.15,0.00016999,2]
[395241350,1764563453099,-2555.15,0.00016999,2]
[395241351,1764563453110,-2555.15,0.00016999,2]
[395241352,1764563453119,-2555.15,0.00016999,2]
[395241353,1764563453129,-2555.15,0.00016999,2]
[395241354,1764563453139,-2555.15,0.00016999,2]
[395241355,1764563453149,-2555.15,0.00016999,2]
[395241356,1764563453158,-2555.15,0.00016999,2]
[395241357,1764563453168,-2555.15,0.00016999,2]
[395241358,1764563453178,-2555.15,0.00016999,2]
[395241359,1764563453188,-2555.15,0.00016999,2]
[395241360,1764563453198,-2555.15,0.00016999,2]
[395241361,1764563453208,-2555.15,0.00016999,2]
[395241362,1764563453218,-2555.15,0.00016999,2]
[395241363,1764563453228,-2555.15,0.00016999,2]
[395241364,1764563453237,-2555.31189094,0.00016999,2]
[395241365,1764563453247,-500.0,0.00016999,2]
[395241366,1764563453256,-482.63374745,0.00016999,2]
[395241367,1764563453266,-540.26417137,0.00016999,2]
[395241368,1764563453275,-300.0,0.00016999,2]
[395241369,1764563453285,-300.0,0.00016999,2]
[395241370,1764563453295,-640.0,0.00017,2]
[395241371,1764563453305,-1258.0,0.00017,2]
[395241372,1764563453315,-1217.12,0.00017,2]
[395241373,1764563453325,-909.0,0.00017,2]
[395241374,1764563453336,-2718.0,0.00017,2]
[395241375,1764563453346,-3442.0,0.00017,2]
[395241376,1764563453355,-1603.0,0.00017,2]
[395241377,1764563453365,-646755.08675748,0.00017,2]
[395241378,1764563453374,-5947.40599635,0.00017,2]
[395241379,1764563453384,-2294374.06958448,0.00017,2]
[395241380,1764563454387,-3048.48917838,0.00017,2]
[395241381,1764563454399,-13195.53181498,0.00017,2]
[395241382,1764563454411,-32601.30742,0.00017,2]
[395241383,1764563454425,-423.81024343,0.00017,2]
[395241384,1764563454437,-2037.98663896,0.00017,2]
[395241385,1764563454448,-448.94325132,0.00017,2]
[395241386,1764563454459,-564.0886184,0.00017,2]
[395241387,1764563454470,-666.0,0.00017,2]
[395241388,1764563454481,-456.37642719,0.00017,2]
[395241389,1764563454493,-58944.27085631,0.00017,2]
[395241390,1764563454504,-2150.22357789,0.00017,2]
[395241391,1764563454591,-4303.44,0.00013598,2]
[395241392,1764563454602,-333.66722249,0.00013598,2]
[395241393,1764563454614,-7399.9999999,0.00013598,2]
[395241394,1764563454632,-2856.58352824,0.00013598,2]
[395241395,1764563454645,-445.92176669,0.00013598,2]
[395241396,1764563454665,-2224.49994596,0.00013598,2]
[395241397,1764563454674,-500.0,0.00016973,2]
[395241398,1764563454684,-18302.77994414,0.00017,2]
[395241399,1764563454696,-4348.12435315,0.00017,2]
[395241400,1764563454707,-570.39513047,0.00017,2]
[395241401,1764563454732,-501.34245415,0.00016973,2]
[395241402,1764563454741,-99475.23612558,0.00017,2]
[395241403,1764563454752,-134377.24124587,0.00017,2]
[395241404,1764563454763,-3603.41307102,0.00017,2]
[395241405,1764563454866,-345.0,0.00013838,2]
[395241406,1764563454877,-155.0,0.00013838,2]
[395241407,1764563454889,-1322.0,0.00017,2]
[395241408,1764563454899,-2826.44,0.00017,2]
[395241409,1764563454915,-1022.67821826,0.00017,2]
[395241410,1764563454933,-112261.72769841,0.00017,2]
[395241411,1764563454946,-395.6414,0.00017,2]
[395241412,1764563454958,-773.11986588,0.00017,2]
[395241413,1764563454995,-211.91939236,0.00013637,2]
[395241414,1764563455006,-40.90638084,0.00016438,2]
[395241415,1764563455227,-17564.11246327,0.00013965,2]
[395241416,1764563455238,-459.09361916,0.00016438,2]
[395241417,1764563455250,-454.83959372,0.00016438,2]
[395241418,1764563455260,-500.0,0.00016438,2]
[395241419,1764563455272,-500.0,0.00016438,2]
[395241420,1764563455284,-500.0,0.00016438,2]
[395241421,1764563455295,-500.0,0.00016438,2]
[395241422,1764563455307,-500.0,0.00016438,2]
[395241423,1764563455318,-247437.43008535,0.00017,2]
[395241424,1764563455332,-2486.59789697,0.00017,2]
[395241425,1764563455353,-5405.47653459,0.00017,2]
[395241426,1764564145075,816.7,0.00014386,4]
[395241427,1764564185614,150.0,0.0002,120]
[395241429,1764564632135,-311.04597449,0.000126,2]
[395241430,1764564632145,-172.34480859,0.00012637,2]
[395241431,1764564632154,-250.0,0.00012641,2]
[395241432,1764564632164,-195.94632522,0.00012646,2]
[395241433,1764564632174,-451.69,0.00012655,3]
[395241434,1764564632183,-1200.0,0.00012699,2]
[395241435,1764564632192,-300.0,0.00012699,2]
[395241436,1764564632202,-300.0,0.00012699,2]
[395241437,1764564632211,-1200.0,0.00012699,2]
[395241438,1764564632220,-500.0,0.00012699,2]
[395241439,1764564632229,-223.33378702,0.00012699,2]
[395241440,1764564632238,-500.0,0.00012699,2]
[395241441,1764564632248,-14125.44674467,0.000127,2]
[395241442,1764564632259,-765.09272404,0.000127,2]
[395241443,1764564632270,-1864.39182967,0.000127,2]
[395241444,1764564632281,-1426.50870162,0.000127,2]
[395241445,1764564632291,-150.0,0.00012737,2]
[395241446,1764564632300,-95.00674467,0.00012833,2]
[395241447,1764564632327,-750.03325533,0.00012833,2]
[395241448,1764564632336,-161.85,0.00012911,2]
[395241449,1764564632346,-3865.93,0.00012931,2]
[395241450,1764564632355,-999.0,0.00013057,3]
[395241452,1764564632364,-500.0,0.00013158,2]
[395241454,1764564632372,-898.81,0.00013158,2]
[395241455,1764564632381,-1815.21196542,0.00013397,2]
[395241457,1764564632390,-15963.26236667,0.00013397,2]
[395241459,1764564632399,-288.77896755,0.00013398,2]
[395241461,1764564632409,-500.0,0.00013487,2]
[395241464,1764564632418,-309.98739732,0.00013487,2]
[395241466,1764564632427,-500.0,0.00013487,2]
[395241468,1764564632436,-3306.04741484,0.00013488,2]
[395241470,1764564632445,-128109.84177426,0.0001349,2]
[395241473,1764564632456,-35376.76667949,0.0001349,2]
[395241478,1764564632475,-2703.53710003,0.0001349,2]
[395241481,1764564632496,-4301.12613584,0.0001349,2]
[395241488,1764564639227,-1000.0,0.00013396,2]
[395241489,1764564639236,-300.0,0.0001349,2]
[395241490,1764564639247,-861.18894,0.0001349,2]
[395241491,1764564639273,-280.06670976,0.0001349,2]
[395241492,1764564639283,-42995.5,0.0001349,2]
[395241493,1764564639294,-8568.3,0.0001349,2]
[395241494,1764564639304,-2716.01032259,0.0001349,2]
[395241495,1764564639315,-92362.71300253,0.0001349,2]
[395241498,1764564640279,-78071.14316083,0.0001349,2]
[395241499,1764564640293,-11010.0000003,0.0001349,2]
[395241500,1764564640325,-352343.80617437,0.0001349,2]
[395241501,1764564640334,-150.0,0.00013497,2]
[395241502,1764564640343,-4930.16,0.00013498,2]
[395241503,1764564640352,-264.05,0.00013498,2]
[395241504,1764564640362,-1289.46,0.00013498,2]
[395241505,1764564640371,-9999.99,0.00013498,2]
[395241506,1764564640381,-150.99,0.00013498,2]
[395241507,1764564640390,-1420.77,0.00013498,2]
[395241508,1764564640399,-9723.92,0.00013498,2]
[395241509,1764564640408,-2117.34,0.00013498,2]
[395241510,1764564640418,-999.99,0.00013498,2]
[395241511,1764564640427,-4736.8417,0.00013499,2]
[395241512,1764564640436,-2491.4269,0.00013499,2]
[395241513,1764564640446,-477.4304,0.00013499,2]
[395241514,1764564640456,-2500.0,0.00013499,2]
[395241515,1764564640465,-31647.64756149,0.00013499,2]
[395241516,1764564640474,-1138.0444,0.00013562,2]
[395241517,1764564640483,-150.99,0.00013589,2]
[395241518,1764564640492,-9999.99,0.00013589,2]
[395241519,1764564640501,-9999.99,0.00013589,2]
[395241520,1764564640512,-500.0,0.0001359,2]
[395241521,1764564640521,-150.0,0.0001359,2]
[395241522,1764564640530,-1644.54,0.0001359,2]
[395241523,1764564640540,-500.0,0.0001359,2]
[395241524,1764564640549,-500.0,0.0001359,2]
[395241525,1764564640558,-150.0,0.0001359,2]
[395241526,1764564640567,-500.0,0.0001359,2]
[395241527,1764564640577,-150.0,0.0001359,2]
[395241528,1764564640586,-500.0,0.0001359,2]
[395241529,1764564640595,-200.0,0.0001359,2]
[395241530,1764564640605,-500.0,0.0001359,2]
[395241531,1764564640614,-500.0,0.0001359,2]
[395241532,1764564640623,-151.0,0.0001359,2]
[395241533,1764564640632,-500.0,0.0001359,2]
[395241534,1764564640641,-151.0,0.0001359,2]
[395241535,1764564640650,-500.0,0.0001359,2]
[395241536,1764564640661,-151.0,0.0001359,2]
[395241537,1764564640670,-500.0,0.0001359,2]
[395241538,1764564640679,-151.0,0.0001359,2]
[395241539,1764564640689,-500.0,0.0001359,2]
[395241541,1764564640698,-500.0,0.0001359,2]
[395241542,1764564640707,-151.0,0.0001359,2]
[395241543,1764564640716,-500.0,0.0001359,2]
[395241544,1764564640725,-151.0,0.0001359,2]
[395241545,1764564640734,-500.0,0.0001359,2]
[395241546,1764564640744,-151.0,0.0001359,2]
[395241547,1764564640753,-500.0,0.0001359,2]
[395241548,1764564640763,-151.0,0.0001359,2]
[395241549,1764564640772,-500.0,0.0001359,2]
[395241550,1764564640781,-151.0,0.0001359,2]
[395241551,1764564640790,-500.0,0.0001359,2]
[395241552,1764564640799,-151.0,0.0001359,2]
[395241553,1764564640808,-500.0,0.0001359,2]
[395241554,1764564640821,-151.0,0.0001359,2]
[395241555,1764564640831,-151.0,0.0001359,2]
[395241556,1764564640840,-151.0,0.0001359,2]
[395241557,1764564640849,-500.0,0.0001359,2]
[395241558,1764564640860,-151.0,0.0001359,2]
[395241559,1764564640869,-500.0,0.0001359,2]
[395241560,1764564640879,-151.0,0.0001359,2]
[395241561,1764564640889,-500.0,0.0001359,2]
[395241562,1764564640899,-151.0,0.0001359,2]
[395241563,1764564640908,-500.0,0.0001359,2]
[395241564,1764564640918,-151.0,0.0001359,2]
[395241565,1764564640927,-500.0,0.0001359,2]
[395241566,1764564640936,-151.0,0.0001359,2]
[395241567,1764564640945,-303.32307865,0.0001359,2]
[395241568,1764564640954,-151.0,0.0001359,2]
[395241569,1764564640963,-151.0,0.0001359,2]
[395241570,1764564640971,-200.0,0.0001359,2]
[395241571,1764564640981,-500.0,0.0001359,2]
[395241572,1764564640990,-151.0,0.0001359,2]
[395241573,1764564640999,-151.0,0.0001359,2]
[395241574,1764564641008,-151.0,0.0001359,2]
[395241575,1764564641018,-151.0,0.0001359,2]
[395241576,1764564641027,-151.0,0.0001359,2]
[395241577,1764564641037,-151.0,0.0001359,2]
[395241578,1764564641046,-151.0,0.0001359,2]
[395241579,1764564641055,-151.0,0.0001359,2]
[395241580,1764564641064,-151.0,0.0001359,2]
[395241581,1764564641073,-151.0,0.0001359,2]
[395241582,1764564641082,-151.0,0.0001359,2]
[395241583,1764564641091,-151.0,0.0001359,2]
[395241584,1764564641100,-151.0,0.0001359,2]
[395241585,1764564641109,-200.0,0.0001359,2]
[395241586,1764564641118,-5789.398,0.00013598,2]
[395241587,1764564641127,-270.802,0.00013598,2]
[395241588,1764564641137,-151.0,0.00013695,2]
[395241589,1764564641146,-434.2840336,0.00013698,2]
[395241590,1764564641155,-1128.22,0.00013698,2]
[395241591,1764564641165,-1128.22,0.00013698,2]
[395241592,1764564641174,-1128.22,0.00013698,2]
[395241593,1764564641183,-1128.22,0.00013698,2]
[395241594,1764564641192,-1128.22,0.00013698,2]
[395241595,1764564641202,-1128.22,0.00013698,2]
[395241596,1764564641211,-1128.22,0.00013698,2]
[395241597,1764564641220,-1128.22,0.00013698,2]
[395241598,1764564641229,-1128.22,0.00013698,2]
[395241599,1764564641238,-1128.22,0.00013698,2]
[395241600,1764564641248,-1128.22,0.00013698,2]
[395241601,1764564641257,-1128.22,0.00013698,2]
[395241602,1764564641266,-1128.22,0.00013698,2]
[395241603,1764564641275,-1128.22,0.00013698,2]
[395241604,1764564641284,-1128.22,0.00013698,2]
[395241605,1764564641293,-1128.22,0.00013698,2]
[395241606,1764564641302,-1128.22,0.00013698,2]
[395241607,1764564641311,-1128.22,0.00013698,2]
[395241608,1764564641320,-1128.22,0.00013698,2]
[395241609,1764564641330,-1128.22,0.00013698,2]
[395241610,1764564641339,-1128.22,0.00013698,2]
[395241611,1764564641348,-1128.22,0.00013698,2]
[395241612,1764564641358,-1128.22,0.00013698,2]
[395241613,1764564641367,-1128.37522195,0.00013698,2]
[395241614,1764564641377,-500.0,0.00013698,2]
[395241615,1764564641386,-500.0,0.00013698,2]
[395241616,1764564641395,-500.0,0.00013698,2]
[395241617,1764564641404,-500.0,0.00013698,2]
[395241618,1764564641413,-500.0,0.00013698,2]
[395241619,1764564641423,-500.0,0.00013698,2]
[395241620,1764564641432,-484.18397562,0.00013698,2]
[395241621,1764564641441,-500.0,0.00013698,2]
[395241622,1764564641450,-500.0,0.00013698,2]
[395241623,1764564641459,-501.94091737,0.00013698,2]
[395241624,1764564641468,-500.0,0.00013698,2]
[395241625,1764564641477,-500.0,0.00013698,2]
[395241626,1764564641486,-500.0,0.00013698,2]
[395241627,1764564641495,-500.0,0.00013698,2]
[395241628,1764564641505,-500.0,0.00013698,2]
[395241629,1764564641515,-500.0,0.00013698,2]
[395241630,1764564641525,-500.0,0.00013698,2]
[395241631,1764564641534,-500.0,0.00013698,2]
[395241632,1764564641543,-593.21617524,0.00013698,2]
[395241633,1764564641552,-500.0,0.00013698,2]
[395241634,1764564641561,-500.0,0.00013698,2]
[395241635,1764564641571,-500.0,0.00013698,2]
[395241636,1764564641580,-500.0,0.00013698,2]
[395241637,1764564641589,-500.0,0.00013698,2]
[395241638,1764564641598,-500.0,0.00013698,2]
[395241639,1764564641608,-500.0,0.00013698,2]
[395241640,1764564641617,-500.0,0.00013698,2]
[395241641,1764564641626,-500.0,0.00013698,2]
[395241642,1764564641635,-500.0,0.00013698,2]
[395241643,1764564641644,-500.0,0.00013698,2]
[395241644,1764564641949,-500.0,0.00013698,2]
[395241645,1764564641959,-500.0,0.00013698,2]
[395241646,1764564641968,-500.0,0.00013698,2]
[395241647,1764564641977,-500.0,0.00013698,2]
[395241648,1764564641986,-300.0,0.00013698,2]
[395241649,1764564641995,-300.0,0.00013698,2]
[395241650,1764564642005,-300.0,0.00013698,2]
[395241651,1764564642014,-349.89110636,0.00013698,2]
[395241652,1764564642023,-5156.82,0.00013698,2]
[395241653,1764564642032,-5156.82,0.00013698,2]
[395241654,1764564642041,-5156.82,0.00013698,2]
[395241655,1764564642050,-500.0,0.00013698,2]
[395241656,1764564642060,-500.0,0.00013698,2]
[395241657,1764564642068,-500.0,0.00013698,2]
[395241658,1764564642077,-500.0,0.00013698,2]
[395241659,1764564642086,-500.0,0.00013698,2]
[395241660,1764564642095,-500.0,0.00013698,2]
[395241661,1764564642104,-500.0,0.00013698,2]
[395241662,1764564642113,-500.0,0.00013698,2]
[395241663,1764564642122,-500.0,0.00013698,2]
[395241664,1764564642131,-1639.03,0.00013698,2]
[395241665,1764564642140,-1639.03,0.00013698,2]
[395241666,1764564642150,-1639.03,0.00013698,2]
[395241667,1764564642159,-1639.03,0.00013698,2]
[395241668,1764564642167,-1639.03,0.00013698,2]
[395241669,1764564642177,-1639.03,0.00013698,2]
[395241670,1764564642186,-1639.03,0.00013698,2]
[395241671,1764564642195,-1639.03,0.00013698,2]
[395241672,1764564642204,-1639.03,0.00013698,2]
[395241673,1764564642213,-1639.03,0.00013698,2]
[395241674,1764564642223,-1639.03,0.00013698,2]
[395241675,1764564642233,-1639.03,0.00013698,2]
[395241676,1764564642242,-1639.03,0.00013698,2]
[395241677,1764564642251,-1639.03,0.00013698,2]
[395241678,1764564642260,-1639.03,0.00013698,2]
[395241679,1764564642269,-1639.03,0.00013698,2]
[395241680,1764564642278,-1639.03,0.00013698,2]
[395241681,1764564642287,-1639.03,0.00013698,2]
[395241682,1764564642296,-1639.03,0.00013698,2]
[395241683,1764564642305,-1639.03,0.00013698,2]
[395241684,1764564642314,-1639.03,0.00013698,2]
[395241685,1764564642323,-1639.03,0.00013698,2]
[395241686,1764564642332,-1639.03,0.00013698,2]
[395241687,1764564642341,-1639.22377214,0.00013698,2]
[395241688,1764564642351,-500.0,0.00013698,2]
[395241689,1764564642360,-500.0,0.00013698,2]
[395241690,1764564642369,-500.0,0.00013698,2]
[395241691,1764564642379,-166.66,0.00013699,2]
[395241692,1764564642389,-232.46,0.00013699,2]
[395241693,1764564642398,-200.0,0.00013699,2]
[395241694,1764564642407,-600.0,0.00013699,2]
[395241695,1764564642416,-500.0,0.00013699,2]
[395241696,1764564642426,-269.05709804,0.00013699,2]
[395241697,1764564642435,-500.0,0.00013699,2]
[395241698,1764564642444,-500.0,0.00013699,2]
[395241699,1764564642453,-490.51831434,0.00013699,2]
[395241700,1764564642462,-500.0,0.00013699,2]
[395241701,1764564642471,-150.0,0.00013699,2]
[395241702,1764564642479,-500.0,0.00013727,2]
[395241703,1764564642489,-150.0,0.00013727,2]
[395241704,1764564642498,-500.0,0.00013727,2]
[395241705,1764564642507,-500.0,0.00013727,2]
[395241706,1764564642517,-500.0,0.00013727,2]
[395241707,1764564642526,-500.0,0.00013727,2]
[395241708,1764564642535,-963.07551786,0.00013738,2]
[395241709,1764564642545,-1000.0,0.00013738,2]
[395241710,1764564642554,-15963.2623666,0.00013786,2]
[395241711,1764564642563,-166.66,0.00013836,2]
[395241712,1764564642572,-550.88958633,0.00013836,2]
[395241713,1764564642581,-500.0,0.00013837,2]
[395241714,1764564642591,-500.0,0.00013837,2]
[395241715,1764564642600,-500.0,0.00013837,2]
[395241716,1764564642609,-500.0,0.00013837,2]
[395241717,1764564642618,-500.0,0.00013837,2]
[395241718,1764564642627,-500.0,0.00013837,2]
[395241719,1764564642635,-500.0,0.00013837,2]
[395241720,1764564642644,-500.0,0.00013837,2]
[395241721,1764564642654,-500.0,0.00013837,2]
[395241722,1764564642663,-500.0,0.00013837,2]
[395241723,1764564642673,-500.0,0.00013838,2]
[395241724,1764564642683,-482.63374745,0.00013838,2]
[395241725,1764564642691,-500.0,0.00013838,2]
[395241726,1764564642700,-500.0,0.00013838,2]
[395241727,1764564642709,-500.0,0.00013838,2]
[395241728,1764564642718,-500.0,0.00013838,2]
[395241729,1764564642727,-500.0,0.00013838,2]
[395241730,1764564642736,-500.0,0.00013838,2]
[395241731,1764564642747,-500.0,0.00013838,2]
[395241732,1764564642755,-500.0,0.00013838,2]
[395241733,1764564642764,-500.0,0.00013838,2]
[395241734,1764564642773,-500.0,0.00013838,2]
[395241735,1764564642782,-500.0,0.00013838,2]
[395241736,1764564642791,-500.0,0.00013838,2]
[395241737,1764564642800,-500.0,0.00013838,2]
[395241738,1764564642811,-500.0,0.00013838,2]
[395241739,1764564642826,-500.0,0.00013838,2]
[395241740,1764564642836,-500.0,0.00013838,2]
[395241741,1764564642845,-500.0,0.00013838,2]
[395241742,1764564642854,-500.0,0.00013838,2]
[395241743,1764564642865,-500.0,0.00013838,2]
[395241744,1764564642874,-559.01212268,0.00013838,2]
[395241745,1764564642883,-500.0,0.00013838,2]
[395241747,1764564642894,-500.0,0.00013838,2]
[395241749,1764564642903,-500.0,0.00013838,2]
[395241751,1764564642912,-500.0,0.00013838,2]
[395241753,1764564642920,-500.0,0.00013838,2]
[395241754,1764564642929,-500.0,0.00013838,2]
[395241755,1764564642938,-507.44536732,0.00013838,2]
[395241757,1764564642947,-500.0,0.00013838,2]
[395241758,1764564642956,-500.0,0.00013838,2]
[395241759,1764564642965,-500.0,0.00013838,2]
[395241760,1764564642974,-1379.0,0.00013838,2]
[395241761,1764564642983,-816.7,0.00013838,2]
[395241762,1764564642991,-567.86060721,0.00013838,2]
[395241763,1764564643000,-500.0,0.00013838,2]
[395241765,1764564643009,-500.0,0.00013838,2]
[395241768,1764564643018,-500.0,0.00013838,2]
[395241770,1764564643027,-500.0,0.00013838,2]
[395241772,1764564643036,-500.0,0.00013838,2]
[395241774,1764564643046,-500.0,0.00013838,2]
[395241776,1764564643055,-500.0,0.00013838,2]
[395241777,1764564643064,-500.0,0.00013838,2]
[395241778,1764564643073,-500.0,0.00013838,2]
[395241779,1764564643082,-500.0,0.00013838,2]
[395241780,1764564643091,-333.85230808,0.00013838,2]
[395241781,1764564643100,-500.0,0.00013838,2]
[395241782,1764564643109,-500.0,0.00013838,2]
[395241783,1764564643118,-500.0,0.00013838,2]
[395241784,1764564643127,-500.0,0.00013838,2]
[395241785,1764564643136,-150.0,0.00013838,2]
[395241786,1764564643146,-836.0,0.00013838,2]
[395241787,1764564643155,-500.0,0.00013864,2]
[395241788,1764564643165,-200.0,0.00013864,2]
[395241789,1764564643174,-500.0,0.00013864,2]
[395241790,1764564643183,-500.0,0.00013864,2]
[395241792,1764564643192,-500.0,0.00013864,2]
[395241793,1764564643201,-500.0,0.00013864,2]
[395241794,1764564643210,-1644.54,0.00013864,2]
[395241795,1764564643218,-31647.64756146,0.00013877,2]
[395241796,1764564643227,-195.0,0.00013901,2]
[395241797,1764564643236,-193.0,0.00013901,2]
[395241798,1764564643245,-195.0,0.00013901,2]
[395241799,1764564643254,-300.0,0.00013901,2]
[395241800,1764564643263,-300.0,0.00013901,2]
[395241801,1764564643271,-300.0,0.00013901,2]
[395241802,1764564643280,-300.0,0.00013901,2]
[395241803,1764564643289,-300.0,0.00013901,2]
[395241804,1764564643298,-336.66271481,0.00013901,2]
[395241805,1764564643307,-195.0,0.00013901,2]
[395241806,1764564643316,-250.0,0.00013901,2]
[395241807,1764564643325,-300.0,0.00013901,2]
[395241808,1764564643334,-300.0,0.00013901,2]
[395241809,1764564643344,-300.0,0.00013901,2]
[395241810,1764564643353,-300.0,0.00013901,2]
[395241811,1764564643362,-195.0,0.00013901,2]
[395241812,1764564643371,-250.0,0.00013901,2]
[395241813,1764564643381,-1680.0,0.00013931,2]
[395241814,1764564643390,-420.0,0.00013931,2]
[395241815,1764564643400,-1680.0,0.00013969,2]
[395241816,1764564643409,-166.66,0.00013973,2]
[395241817,1764564643418,-1379.0,0.00013975,2]
[395241818,1764564643428,-500.0,0.00013975,2]
[395241819,1764564643437,-163.45254521,0.00013975,2]
[395241820,1764564643446,-836.0,0.00013975,2]
[395241821,1764564643455,-335.76083111,0.00014001,2]
[395241822,1764564643464,-500.0,0.00014001,2]
[395241823,1764564643473,-153.47951242,0.00014001,2]
[395241824,1764564643482,-500.0,0.00014001,2]
[395241825,1764564643491,-500.0,0.00014001,2]
[395241826,1764564643501,-206.87904237,0.00014012,2]
[395241827,1764564643510,-4565.0,0.00014059,2]
[395241828,1764564643519,-500.0,0.00014089,2]
[395241829,1764564643528,-500.0,0.00014089,2]
[395241830,1764564643538,-500.0,0.00014089,2]
[395241831,1764564643548,-500.0,0.00014089,2]
[395241832,1764564643557,-500.0,0.00014089,2]
[395241833,1764564643566,-500.0,0.00014089,2]
[395241834,1764564643575,-500.0,0.00014089,2]
[395241835,1764564643584,-500.0,0.00014089,2]
[395241836,1764564643593,-500.0,0.00014089,2]
[395241837,1764564643603,-500.0,0.00014089,2]
[395241838,1764564643612,-500.0,0.00014089,2]
[395241839,1764564643622,-166.66,0.0001411,2]
[395241840,1764564643632,-1379.0,0.00014112,2]
[395241841,1764564643641,-500.0,0.00014112,2]
[395241842,1764564643650,-836.0,0.00014112,2]
[395241843,1764564643659,-816.7,0.00014112,3]
[395241844,1764564643668,-500.0,0.00014138,2]
[395241845,1764564643678,-507.08566022,0.00014138,2]
[395241846,1764564643687,-500.0,0.00014138,2]
[395241847,1764564643696,-1644.54,0.00014138,2]
[395241848,1764564643705,-200.0,0.00014138,2]
[395241849,1764564643715,-200.0,0.00014138,2]
[395241850,1764564643724,-500.0,0.00014138,2]
[395241851,1764564643734,-1028.66126224,0.00014148,2]
[395241852,1764564643743,-15963.2623666,0.00014175,2]
[395241853,1764564643752,-234.0,0.00014236,2]
[395241854,1764564643762,-166.66,0.00014247,2]
[395241855,1764564643771,-600.0,0.00014247,2]
[395241856,1764564643780,-1379.0,0.00014249,2]
[395241857,1764564643789,-569.4928398,0.00014249,2]
[395241858,1764564643799,-836.0,0.00014249,2]
[395241859,1764564643809,-31647.64756146,0.00014255,2]
[395241860,1764564643822,-405.86739996,0.00014265,2]
[395241861,1764564643831,-963.07551786,0.00014265,2]
[395241862,1764564643840,-203.73471508,0.00014275,2]